fUST/lending_fUST_20250603
["ID","MTS","AMOUNT","RATE_DAILY","PERIOD"]
[363907146,1748920232582,-402.04364757,0.00016438,2]
[363907148,1748920232592,-430.0,0.00016438,2]
[363907150,1748920232603,-405.98036752,0.00016438,2]
[363907151,1748920232613,-430.0,0.00016438,2]
[363907153,1748920232622,-430.0,0.00016438,2]
[363907155,1748920232632,-430.0,0.00016438,2]
[363907157,1748920232642,-430.0,0.00016438,2]
[363907159,1748920232651,-400.0,0.00016438,2]
[363907161,1748920232660,-433.28200542,0.00016438,2]
[363907163,1748920232671,-343.9840046,0.00016438,2]
[363907165,1748920232683,-454.28375749,0.00016438,2]
[363907167,1748920232692,-446.60602996,0.00016438,2]
[363907169,1748920232702,-478.88319271,0.00016438,2]
[363907171,1748920232712,-444.17140191,0.00016438,2]
[363907173,1748920232722,-430.0,0.00016438,2]
[363907175,1748920232731,-430.0,0.00016438,2]
[363907176,1748920232741,-208.56650034,0.00016438,2]
[363907177,1748920232751,-400.70581169,0.00016438,2]
[363907179,1748920232760,-432.04728312,0.00016438,2]
[363907181,1748920232771,-401.50430107,0.00016438,2]
[363907182,1748920232781,-440.0,0.00016438,2]
[363907183,1748920232791,-432.10599713,0.00016438,2]
[363907185,1748920232801,-430.0,0.00016438,2]
[363907186,1748920232811,-432.05282214,0.00016438,2]
[363907187,1748920232821,-430.0,0.00016438,2]
[363907188,1748920232831,-431.36891116,0.00016438,2]
[363907189,1748920232841,-445.13647519,0.00016438,2]
[363907190,1748920232851,-435.93408426,0.00016438,2]
[363907191,1748920232860,-430.0,0.00016438,2]
[363907192,1748920232871,-437.94082265,0.00016438,2]
[363907193,1748920232880,-432.77824541,0.00016438,2]
[363907194,1748920232890,-444.73064392,0.00016438,2]
[363907195,1748920232900,-449.55413252,0.00016438,2]
[363907196,1748920232909,-430.0,0.00016438,2]
[363907197,1748920232919,-430.0,0.00016438,2]
[363907198,1748920232930,-433.7242089,0.00016438,2]
[363907199,1748920232941,-430.0,0.00016438,2]
[363907200,1748920232951,-431.43381712,0.00016438,2]
[363907201,1748920232960,-430.0,0.00016438,2]
[363907202,1748920232969,-430.0,0.00016438,2]
[363907203,1748920232979,-430.0,0.00016438,2]
[363907204,1748920232989,-430.0,0.00016438,2]
[363907205,1748920232999,-430.0,0.00016438,2]
[363907206,1748920233010,-436.61533083,0.00016438,2]
[363907207,1748920233020,-430.0,0.00016438,2]
[363907208,1748920233031,-455.67172874,0.00016438,2]
[363907209,1748920233041,-439.45147197,0.00016438,2]
[363907210,1748920233051,-430.0,0.00016438,2]
[363907211,1748920233060,-430.0,0.00016438,2]
[363907212,1748920233070,-440.8341701,0.00016438,2]
[363907213,1748920233080,-453.68641022,0.00016438,2]
[363907214,1748920233090,-440.0,0.00016438,2]
[363907215,1748920233101,-430.0,0.00016438,2]
[363907216,1748920233115,-440.0,0.00016438,2]
[363907217,1748920233129,-430.0,0.00016438,2]
[363907218,1748920233144,-462.97400854,0.00016438,2]
[363907219,1748920233158,-443.61368992,0.00016438,2]
[363907220,1748920233173,-442.68032576,0.00016438,2]
[363907221,1748920233189,-440.62279395,0.00016438,2]
[363907222,1748920233201,-441.17484956,0.00016438,2]
[363907223,1748920233212,-430.0,0.00016438,2]
[363907224,1748920233225,-297.12737375,0.00016438,2]
[363907225,1748920233238,-492.11384605,0.00016438,2]
[363907226,1748920233251,-430.0,0.00016438,2]
[363907227,1748920233263,-437.49142693,0.00016438,2]
[363907228,1748920233276,-430.0,0.00016438,2]
[363907229,1748920233288,-441.95636161,0.00016438,2]
[363907230,1748920233302,-430.0,0.00016438,2]
[363907231,1748920233314,-439.8322629,0.00016438,2]
[363907232,1748920233327,-441.73447325,0.00016438,2]
[363907233,1748920233340,-457.11037825,0.00016438,2]
[363907234,1748920233353,-444.30203634,0.00016438,2]
[363907235,1748920233370,-430.0,0.00016438,2]
[363907236,1748920233382,-360.57095344,0.00016438,2]
[363907237,1748920233395,-443.08937843,0.00016438,2]
[363907238,1748920233409,-430.0,0.00016438,2]
[363907239,1748920233421,-430.0,0.00016438,2]
[363907240,1748920233436,-443.66590742,0.00016438,2]
[363907241,1748920233448,-471.68886244,0.00016438,2]
[363907242,1748920233461,-430.0,0.00016438,2]
[363907243,1748920233474,-442.12365908,0.00016438,2]
[363907244,1748920233487,-523.53672821,0.00016438,2]
[363907245,1748920233499,-430.0,0.00016438,2]
[363907246,1748920233511,-430.0,0.00016438,2]
[363907247,1748920233523,-430.0,0.00016438,2]
[363907248,1748920233536,-413.35868809,0.00016438,2]
[363907249,1748920233547,-432.93361545,0.00016438,2]
[363907250,1748920233559,-430.0,0.00016438,2]
[363907251,1748920233572,-436.73533297,0.00016438,2]
[363907252,1748920233584,-301.65072063,0.00016438,2]
[363907253,1748920233597,-440.0,0.00016438,2]
[363907254,1748920233609,-430.0,0.00016438,2]
[363907255,1748920233622,-430.0,0.00016438,2]
[363907256,1748920233635,-430.0,0.00016438,2]
[363907257,1748920233647,-430.0,0.00016438,2]
[363907258,1748920233658,-211.11717812,0.00016438,2]
[363907259,1748920233670,-268.23077591,0.00016438,2]
[363907260,1748920233685,-440.0,0.00016438,2]
[363907261,1748920233697,-440.0,0.00016438,2]
[363907262,1748920233711,-430.0,0.00016438,2]
[363907263,1748920233724,-440.0,0.00016438,2]
[363907264,1748920233736,-430.0,0.00016438,2]
[363907265,1748920233747,-423.40622762,0.00016438,2]
[363907266,1748920233756,-275.00975943,0.00016438,2]
[363907267,1748920233768,-430.0,0.00016438,2]
[363907268,1748920233778,-437.7812393,0.00016438,2]
[363907269,1748920233789,-430.0,0.00016438,2]
[363907270,1748920233800,-440.0,0.00016438,2]
[363907271,1748920233813,-430.0,0.00016438,2]
[363907272,1748920233826,-265.07714555,0.00016438,2]
[363907273,1748920233838,-430.0,0.00016438,2]
[363907274,1748920233851,-430.0,0.00016438,2]
[363907275,1748920233862,-430.0,0.00016438,2]
[363907276,1748920233873,-430.0,0.00016438,2]
[363907277,1748920233884,-430.0,0.00016438,2]
[363907278,1748920233895,-434.83525503,0.00016438,2]
[363907279,1748920233907,-430.0,0.00016438,2]
[363907280,1748920233919,-497.55776239,0.00016438,2]
[363907281,1748920233932,-430.0,0.00016438,2]
[363907282,1748920233943,-430.0,0.00016438,2]
[363907283,1748920233955,-434.22449369,0.00016438,2]
[363907284,1748920233965,-440.16378127,0.00016438,2]
[363907285,1748920233976,-430.0,0.00016438,2]
[363907286,1748920233987,-438.70831734,0.00016438,2]
[363907287,1748920233998,-430.0,0.00016438,2]
[363907288,1748920234010,-430.0,0.00016438,2]
[363907289,1748920234020,-430.0,0.00016438,2]
[363907290,1748920234031,-430.0,0.00016438,2]
[363907291,1748920234043,-440.0,0.00016438,2]
[363907292,1748920234055,-439.0382,0.00016438,2]
[363907293,1748920234066,-497.71961472,0.00016438,2]
[363907294,1748920234078,-431.55075061,0.00016438,2]
[363907295,1748920234089,-431.33107171,0.00016438,2]
[363907296,1748920234100,-500.0,0.00016438,2]
[363907297,1748920234111,-440.0,0.00016438,2]
[363907298,1748920234123,-440.0,0.00016438,2]
[363907299,1748920234135,-438.44127338,0.00016438,2]
[363907300,1748920234147,-437.13191541,0.00016438,2]
[363907301,1748920234158,-440.0,0.00016438,2]
[363907302,1748920234169,-431.74045999,0.00016438,2]
[363907303,1748920234182,-430.0,0.00016438,2]
[363907304,1748920234193,-430.0,0.00016438,2]
[363907305,1748920234204,-440.0,0.00016438,2]
[363907306,1748920234216,-430.0,0.00016438,2]
[363907307,1748920234227,-432.69179407,0.00016438,2]
[363907308,1748920234239,-440.0,0.00016438,2]
[363907309,1748920234251,-433.47516711,0.00016438,2]
[363907310,1748920234262,-430.0,0.00016438,2]
[363907311,1748920234274,-432.13181176,0.00016438,2]
[363907312,1748920234285,-440.0,0.00016438,2]
[363907313,1748920234297,-440.0,0.00016438,2]
[363907314,1748920234307,-440.0,0.00016438,2]
[363907315,1748920234318,-430.0,0.00016438,2]
[363907316,1748920234330,-430.0,0.00016438,2]
[363907317,1748920234342,-440.0,0.00016438,2]
[363907318,1748920234353,-440.0,0.00016438,2]
[363907319,1748920234368,-437.6898299,0.00016438,2]
[363907320,1748920234379,-436.01369669,0.00016438,2]
[363907321,1748920234390,-168.48868773,0.00016438,2]
[363907322,1748920234402,-676.86,0.00016438,2]
[363907323,1748920234413,-440.0,0.00016438,2]
[363907324,1748920234423,-473.63753092,0.00016438,2]
[363907325,1748920234437,-430.0,0.00016438,2]
[363907326,1748920234448,-442.2848589,0.00016438,2]
[363907327,1748920234470,-440.0,0.00016438,2]
[363907328,1748920234486,-440.0,0.00016438,2]
[363907329,1748920234500,-512.49206934,0.00016438,2]
[363907330,1748920234514,-431.24585279,0.00016438,2]
[363907331,1748920234527,-430.0,0.00016438,2]
[363907332,1748920234541,-440.0,0.00016438,2]
[363907333,1748920234554,-436.95411518,0.00016438,2]
[363907334,1748920234567,-432.07287624,0.00016438,2]
[363907335,1748920234580,-440.0,0.00016438,2]
[363907336,1748920234593,-233.60621963,0.00016438,2]
[363907337,1748920234605,-530.5150378,0.00016438,2]
[363907338,1748920234617,-431.4653082,0.00016438,2]
[363907339,1748920234630,-440.0,0.00016438,2]
[363907340,1748920234642,-440.0,0.00016438,2]
[363907341,1748920234655,-440.0,0.00016438,2]
[363907342,1748920234667,-430.0,0.00016438,2]
[363907343,1748920234679,-402.67892082,0.00016438,2]
[363907344,1748920234690,-436.98902445,0.00016438,2]
[363907345,1748920234702,-430.0,0.00016438,2]
[363907346,1748920234714,-430.0,0.00016438,2]
[363907347,1748920234725,-440.0,0.00016438,2]
[363907348,1748920234737,-436.10138319,0.00016438,2]
[363907349,1748920234750,-440.0,0.00016438,2]
[363907350,1748920234762,-436.10618459,0.00016438,2]
[363907351,1748920234774,-430.0,0.00016438,2]
[363907352,1748920234786,-282.47471781,0.00016438,2]
[363907353,1748920235117,-147.52528219,0.00016438,2]
[363907354,1748920235128,-440.0,0.00016438,2]
[363907355,1748920235138,-440.0,0.00016438,2]
[363907356,1748920235148,-430.0,0.00016438,2]
[363907357,1748920235158,-292.47471781,0.00016438,2]
[363907380,1748920237850,-145.43754299,0.00016438,2]
[363907382,1748920237861,-500.0,0.00016438,2]
[363907385,1748920237871,-500.0,0.00016438,2]
[363907387,1748920237880,-430.0,0.00016438,2]
[363907389,1748920237890,-518.21789896,0.00016438,2]
[363907391,1748920237899,-401.88476065,0.00016438,2]
[363907393,1748920237908,-430.0,0.00016438,2]
[363907394,1748920237918,-440.0,0.00016438,2]
[363907397,1748920237931,-440.0,0.00016438,2]
[363907399,1748920237940,-430.0,0.00016438,2]
[363907401,1748920237950,-208.92961296,0.00016438,2]
[363907403,1748920237960,-440.0,0.00016438,2]
[363907405,1748920237969,-440.0,0.00016438,2]
[363907407,1748920237979,-274.78236003,0.00016438,2]
[363907409,1748920237989,-440.0,0.00016438,2]
[363907411,1748920237999,-430.0,0.00016438,2]
[363907413,1748920238009,-440.0,0.00016438,2]
[363907414,1748920238023,-440.0,0.00016438,2]
[363907416,1748920238034,-440.0,0.00016438,2]
[363907417,1748920238044,-440.0,0.00016438,2]
[363907419,1748920238056,-440.0,0.00016438,2]
[363907420,1748920238065,-402.76611125,0.00016438,2]
[363907422,1748920238076,-430.0,0.00016438,2]
[363907423,1748920238085,-440.0,0.00016438,2]
[363907424,1748920238095,-440.92696548,0.00016438,2]
[363907425,1748920238104,-440.0,0.00016438,2]
[363907426,1748920238114,-440.0,0.00016438,2]
[363907428,1748920238124,-440.0,0.00016438,2]
[363907429,1748920238134,-430.0,0.00016438,2]
[363907430,1748920238145,-440.0,0.00016438,2]
[363907431,1748920238155,-303.92521453,0.00016438,2]
[363907432,1748920238165,-432.7703768,0.00016438,2]
[363907433,1748920238176,-435.74696005,0.00016438,2]
[363907434,1748920238188,-440.0,0.00016438,2]
[363907435,1748920238198,-431.59704046,0.00016438,2]
[363907436,1748920238207,-355.09781055,0.00016438,2]
[363907437,1748920238217,-440.0,0.00016438,2]
[363907438,1748920238228,-438.62724353,0.00016438,2]
[363907439,1748920238238,-437.29615379,0.00016438,2]
[363907440,1748920238259,-440.0,0.00016438,2]
[363907441,1748920238270,-440.0,0.00016438,2]
[363907442,1748920238280,-440.0,0.00016438,2]
[363907443,1748920238290,-433.68048284,0.00016438,2]
[363907444,1748920238300,-432.62495306,0.00016438,2]
[363907445,1748920238310,-430.0,0.00016438,2]
[363907446,1748920238320,-395.27648582,0.00016438,2]
[363907447,1748920238330,-440.0,0.00016438,2]
[363907448,1748920238340,-406.17254476,0.00016438,2]
[363907449,1748920238350,-402.89701531,0.00016438,2]
[363907450,1748920238364,-440.0,0.00016438,2]
[363907451,1748920238374,-405.64316315,0.00016438,2]
[363907452,1748920238384,-360.2424115,0.00016438,2]
[363907453,1748920238394,-438.93025805,0.00016438,2]
[363907454,1748920238406,-430.0,0.00016438,2]
[363907455,1748920238416,-440.0,0.00016438,2]
[363907456,1748920238426,-434.20804523,0.00016438,2]
[363907457,1748920238438,-504.85496239,0.00016438,2]
[363907458,1748920238448,-453.57506292,0.00016438,2]
[363907459,1748920238458,-430.0,0.00016438,2]
[363907460,1748920238468,-432.04829816,0.00016438,2]
[363907461,1748920238477,-430.0,0.00016438,2]
[363907462,1748920238487,-430.0,0.00016438,2]
[363907463,1748920238497,-430.0,0.00016438,2]
[363907464,1748920238507,-446.6497954,0.00016438,2]
[363907465,1748920238517,-430.0,0.00016438,2]
[363907466,1748920238527,-430.0,0.00016438,2]
[363907467,1748920238537,-434.27027235,0.00016438,2]
[363907468,1748920238547,-430.0,0.00016438,2]
[363907469,1748920238557,-432.53153357,0.00016438,2]
[363907470,1748920238567,-430.0,0.00016438,2]
[363907471,1748920238576,-430.0,0.00016438,2]
[363907472,1748920238586,-430.0,0.00016438,2]
[363907473,1748920238597,-440.0,0.00016438,2]
[363907474,1748920238607,-440.0,0.00016438,2]
[363907475,1748920238617,-433.66456081,0.00016438,2]
[363907476,1748920238627,-430.0,0.00016438,2]
[363907477,1748920238637,-436.5246249,0.00016438,2]
[363907478,1748920238647,-342.12475567,0.00016438,2]
[363907479,1748920238656,-403.45788623,0.00016438,2]
[363907480,1748920238666,-430.0,0.00016438,2]
[363907481,1748920238676,-502.84923994,0.00016438,2]
[363907482,1748920238687,-430.0,0.00016438,2]
[363907483,1748920238698,-503.1471915,0.00016438,2]
[363907484,1748920238708,-430.0,0.00016438,2]
[363907485,1748920238718,-430.0,0.00016438,2]
[363907486,1748920238728,-430.0,0.00016438,2]
[363907487,1748920238738,-430.0,0.00016438,2]
[363907488,1748920238748,-430.0,0.00016438,2]
[363907489,1748920238758,-430.0,0.00016438,2]
[363907490,1748920238769,-402.86698581,0.00016438,2]
[363907491,1748920238778,-430.0,0.00016438,2]
[363907492,1748920238790,-440.0,0.00016438,2]
[363907493,1748920238800,-430.0,0.00016438,2]
[363907494,1748920238810,-439.62909382,0.00016438,2]
[363907495,1748920238820,-440.0,0.00016438,2]
[363907496,1748920238831,-430.0,0.00016438,2]
[363907497,1748920238841,-440.0,0.00016438,2]
[363907498,1748920238851,-430.0,0.00016438,2]
[363907499,1748920238861,-430.0,0.00016438,2]
[363907500,1748920238871,-430.0,0.00016438,2]
[363907501,1748920238881,-440.0,0.00016438,2]
[363907502,1748920238891,-440.0,0.00016438,2]
[363907503,1748920238901,-430.0,0.00016438,2]
[363907504,1748920238910,-430.0,0.00016438,2]
[363907505,1748920238920,-430.0,0.00016438,2]
[363907506,1748920238930,-430.0,0.00016438,2]
[363907507,1748920238940,-440.0,0.00016438,2]
[363907508,1748920238950,-431.18877843,0.00016438,2]
[363907509,1748920238960,-430.0,0.00016438,2]
[363907510,1748920238970,-430.0,0.00016438,2]
[363907511,1748920238980,-440.0,0.00016438,2]
[363907512,1748920238989,-430.0,0.00016438,2]
[363907513,1748920238999,-430.0,0.00016438,2]
[363907514,1748920239010,-440.0,0.00016438,2]
[363907515,1748920239020,-440.0,0.00016438,2]
[363907516,1748920239030,-430.0,0.00016438,2]
[363907517,1748920239040,-433.45076996,0.00016438,2]
[363907518,1748920239050,-430.0,0.00016438,2]
[363907519,1748920239060,-440.0,0.00016438,2]
[363907520,1748920239070,-435.24498186,0.00016438,2]
[363907521,1748920239080,-436.5062253,0.00016438,2]
[363907522,1748920239091,-430.0,0.00016438,2]
[363907523,1748920239100,-430.0,0.00016438,2]
[363907524,1748920239109,-436.26428756,0.00016438,2]
[363907525,1748920239119,-430.0,0.00016438,2]
[363907526,1748920239129,-430.0,0.00016438,2]
[363907527,1748920239139,-430.0,0.00016438,2]
[363907528,1748920239149,-430.0,0.00016438,2]
[363907529,1748920239159,-430.0,0.00016438,2]
[363907530,1748920239169,-430.0,0.00016438,2]
[363907531,1748920239180,-430.0,0.00016438,2]
[363907532,1748920239189,-440.0,0.00016438,2]
[363907533,1748920239199,-432.99820698,0.00016438,2]
[363907534,1748920239210,-430.0,0.00016438,2]
[363907535,1748920239220,-433.08501265,0.00016438,2]
[363907536,1748920239230,-440.0,0.00016438,2]
[363907537,1748920239240,-430.0,0.00016438,2]
[363907538,1748920239250,-430.0,0.00016438,2]
[363907539,1748920239259,-430.0,0.00016438,2]
[363907540,1748920239269,-430.0,0.00016438,2]
[363907541,1748920239279,-720.73,0.00016438,2]
[363907542,1748920239290,-402.8449384,0.00016438,2]
[363907543,1748920239300,-440.0,0.00016438,2]
[363907544,1748920239310,-430.0,0.00016438,2]
[363907545,1748920239320,-440.0,0.00016438,2]
[363907546,1748920239330,-453.68292201,0.00016438,2]
[363907547,1748920239340,-440.0,0.00016438,2]
[363907548,1748920239349,-430.0,0.00016438,2]
[363907549,1748920239360,-454.05360735,0.00016438,2]
[363907550,1748920239373,-430.0,0.00016438,2]
[363907551,1748920239383,-378.56990288,0.00016438,2]
[363907552,1748920239393,-436.60609654,0.00016438,2]
[363907553,1748920239403,-440.0,0.00016438,2]
[363907554,1748920239413,-269.02168052,0.00016475,2]
[363907555,1748920239423,-269.02168052,0.00016612,2]
[363907556,1748920239434,-482.09595252,0.00016712,2]
[363907557,1748920239445,-440.0,0.00016712,2]
[363907558,1748920239456,-440.0,0.00016712,2]
[363907559,1748920239466,-440.0,0.00016712,2]
[363907562,1748920239476,-420.0,0.00016712,2]
[363907565,1748920239486,-420.0,0.00016712,2]
[363907566,1748920239496,-420.0,0.00016712,2]
[363907567,1748920239508,-434.07422914,0.00016712,2]
[363907568,1748920239519,-440.0,0.00016712,2]
[363907569,1748920239529,-395.88184264,0.00016712,2]
[363907570,1748920239539,-443.33559398,0.00016712,2]
[363907571,1748920239549,-447.35285085,0.00016712,2]
[363907572,1748920239559,-470.94699399,0.00016712,2]
[363907573,1748920239570,-420.0,0.00016712,2]
[363907574,1748920239579,-440.0,0.00016712,2]
[363907575,1748920239589,-395.34589444,0.00016712,2]
[363907576,1748920239599,-440.0,0.00016712,2]
[363907577,1748920239609,-392.25042561,0.00016712,2]
[363907578,1748920239619,-440.0,0.00016712,2]
[363907579,1748920239629,-440.0,0.00016712,2]
[363907580,1748920239638,-676.86,0.00016712,2]
[363907581,1748920239647,-440.0,0.00016712,2]
[363907582,1748920239657,-440.0,0.00016712,2]
[363907583,1748920239666,-440.0,0.00016712,2]
[363907584,1748920239676,-314.12902412,0.00016712,2]
[363907585,1748920239687,-440.0,0.00016712,2]
[363907586,1748920239696,-440.0,0.00016712,2]
[363907587,1748920239706,-440.0,0.00016712,2]
[363907588,1748920239715,-224.65117827,0.00016712,2]
[363907589,1748920239725,-404.42178355,0.00016712,2]
[363907590,1748920239734,-440.0,0.00016712,2]
[363907591,1748920239744,-440.0,0.00016712,2]
[363907592,1748920239753,-440.0,0.00016712,2]
[363907593,1748920239763,-440.0,0.00016712,2]
[363907594,1748920239773,-440.0,0.00016712,2]
[363907595,1748920239782,-394.19423643,0.00016712,2]
[363907596,1748920239791,-440.0,0.00016712,2]
[363907598,1748920239800,-440.0,0.00016712,2]
[363907599,1748920239810,-463.07176431,0.00016712,2]
[363907600,1748920239820,-440.0,0.00016712,2]
[363907602,1748920239829,-213.66024518,0.00016712,2]
[363907604,1748920239839,-440.0,0.00016712,2]
[363907606,1748920239848,-443.40766333,0.00016712,2]
[363907607,1748920239858,-397.26191204,0.00016712,2]
[363907608,1748920239867,-440.0,0.00016712,2]
[363907609,1748920239876,-396.11947404,0.00016712,2]
[363907610,1748920239885,-420.0,0.00016712,2]
[363907611,1748920239895,-440.0,0.00016712,2]
[363907612,1748920239906,-420.0,0.00016712,2]
[363907613,1748920239917,-430.62505349,0.00016712,2]
[363907614,1748920239927,-440.0,0.00016712,2]
[363907615,1748920239943,-420.0,0.00016712,2]
[363907616,1748920239951,-440.0,0.00016712,2]
[363907617,1748920239959,-440.0,0.00016712,2]
[363907618,1748920239967,-393.44192442,0.00016712,2]
[363907619,1748920239975,-440.0,0.00016712,2]
[363907620,1748920239984,-440.0,0.00016712,2]
[363907621,1748920239992,-423.98736959,0.00016712,2]
[363907622,1748920240001,-397.29668883,0.00016712,2]
[363907623,1748920240011,-426.03376463,0.00016712,2]
[363907624,1748920240021,-440.0,0.00016712,2]
[363907625,1748920240030,-440.0,0.00016712,2]
[363907626,1748920240041,-423.95202497,0.00016712,2]
[363907627,1748920240051,-440.0,0.00016712,2]
[363907628,1748920240061,-556.46129555,0.00016712,2]
[363907629,1748920240071,-440.0,0.00016712,2]
[363907630,1748920240081,-440.0,0.00016712,2]
[363907631,1748920240091,-440.0,0.00016712,2]
[363907632,1748920240101,-440.0,0.00016712,2]
[363907633,1748920240111,-432.34815457,0.00016712,2]
[363907634,1748920240120,-720.73,0.00016712,2]
[363907635,1748920240130,-440.0,0.00016712,2]
[363907636,1748920240139,-440.0,0.00016712,2]
[363907637,1748920240149,-362.10263772,0.00016712,2]
[363907638,1748920240160,-440.0,0.00016712,2]
[363907639,1748920240170,-544.69195466,0.0001675,2]
[363907640,1748920240183,-479.05875424,0.00016886,2]
[363907641,1748920240193,-440.0,0.00016986,2]
[363907642,1748920240202,-440.0,0.00016986,2]
[363907643,1748920240214,-440.0,0.00016986,2]
[363907644,1748920240224,-440.0,0.00016986,2]
[363907645,1748920240234,-457.31297145,0.00016986,2]
[363907646,1748920240243,-416.9670669,0.00016986,2]
[363907647,1748920240255,-410.0,0.00016986,2]
[363907648,1748920240264,-440.0,0.00016986,2]
[363907649,1748920240273,-676.86,0.00016986,2]
[363907650,1748920240283,-440.0,0.00016986,2]
[363907651,1748920240292,-457.50750268,0.00016986,2]
[363907652,1748920240302,-410.0,0.00016986,2]
[363907653,1748920240312,-440.0,0.00016986,2]
[363907654,1748920240322,-440.0,0.00016986,2]
[363907655,1748920240332,-440.0,0.00016986,2]
[363907656,1748920240342,-440.0,0.00016986,2]
[363907657,1748920240351,-440.0,0.00016986,2]
[363907658,1748920240362,-415.80648763,0.00016986,2]
[363907659,1748920240373,-440.0,0.00016986,2]
[363907660,1748920240383,-440.0,0.00016986,2]
[363907661,1748920240393,-440.0,0.00016986,2]
[363907662,1748920240545,-440.0,0.00016986,2]
[363907663,1748920240556,-440.0,0.00016986,2]
[363907664,1748920240567,-440.0,0.00016986,2]
[363907665,1748920240577,-440.0,0.00016986,2]
[363907666,1748920240587,-440.0,0.00016986,2]
[363907667,1748920240597,-440.0,0.00016986,2]
[363907668,1748920240607,-417.47600792,0.00016986,2]
[363907669,1748920240617,-410.0,0.00016986,2]
[363907670,1748920240627,-440.0,0.00016986,2]
[363907671,1748920240636,-440.0,0.00016986,2]
[363907672,1748920240646,-249.60259686,0.00016986,2]
[363907673,1748920240656,-410.0,0.00016986,2]
[363907674,1748920240665,-440.0,0.00016986,2]
[363907675,1748920240675,-440.0,0.00016986,2]
[363907676,1748920240687,-440.0,0.00016986,2]
[363907677,1748920240697,-440.0,0.00016986,2]
[363907678,1748920240708,-440.0,0.00016986,2]
[363907679,1748920240717,-720.73,0.00016986,2]
[363907680,1748920240727,-453.71564651,0.00016986,2]
[363907681,1748920240737,-440.0,0.00016986,2]
[363907682,1748920240746,-440.0,0.00016986,2]
[363907683,1748920240756,-766.52047868,0.000171,2]
[363907684,1748920240765,-766.52047856,0.00017141,2]
[363907685,1748920240775,-440.0,0.0001726,2]
[363907686,1748920240785,-440.0,0.0001726,2]
[363907687,1748920240795,-440.0,0.0001726,2]
[363907688,1748920240805,-440.0,0.0001726,2]
[363907689,1748920240814,-440.0,0.0001726,2]
[363907690,1748920240824,-676.86,0.0001726,2]
[363907691,1748920240834,-323.69648315,0.0001726,2]
[363907692,1748920240844,-404.89650153,0.0001726,2]
[363907693,1748920240854,-440.0,0.0001726,2]
[363907694,1748920240864,-408.93727323,0.0001726,2]
[363907695,1748920240874,-231.35002777,0.0001726,2]
[363907696,1748920240885,-440.0,0.0001726,2]
[363907697,1748920240894,-408.73730541,0.0001726,2]
[363907698,1748920240904,-440.0,0.0001726,2]
[363907699,1748920240914,-440.0,0.0001726,2]
[363907700,1748920240924,-440.0,0.0001726,2]
[363907701,1748920240935,-440.0,0.0001726,2]
[363907702,1748920240944,-400.0,0.0001726,2]
[363907703,1748920240954,-440.0,0.0001726,2]
[363907704,1748920240964,-440.0,0.0001726,2]
[363907705,1748920240974,-440.0,0.0001726,2]
[363907706,1748920240984,-440.0,0.0001726,2]
[363907707,1748920240994,-440.0,0.0001726,2]
[363907708,1748920241004,-440.0,0.0001726,2]
[363907709,1748920241013,-440.0,0.0001726,2]
[363907710,1748920241023,-440.0,0.0001726,2]
[363907711,1748920241033,-440.0,0.0001726,2]
[363907712,1748920241043,-521.09957922,0.0001726,2]
[363907713,1748920241053,-720.73,0.0001726,2]